fUSD/lending_fUSD_20240322
["ID","MTS","AMOUNT","RATE_DAILY","PERIOD"]
[320079846,1711139473754,-543.21,0.00022465,2]
[320079847,1711139473764,-2055.39,0.00022465,2]
[320079848,1711139473773,-500.0,0.00022465,2]
[320079849,1711139473782,-500.0,0.00022465,2]
[320079850,1711139473791,-809.11,0.00022465,2]
[320079851,1711139473800,-500.0,0.00022465,2]
[320079852,1711139473810,-1430.78,0.00022465,2]
[320079853,1711139473820,-500.0,0.00022465,2]
[320079854,1711139473829,-500.0,0.00022465,2]
[320079855,1711139473838,-500.0,0.00022465,2]
[320079856,1711139473853,-1274.19,0.00022465,2]
[320079857,1711139473862,-500.0,0.00022465,2]
[320079858,1711139473871,-2133.2,0.00022465,2]
[320079859,1711139473881,-506.16522394,0.00022465,2]
[320079860,1711139473890,-500.65,0.00022465,2]
[320079861,1711139473900,-500.0,0.00022465,2]
[320079862,1711139473909,-500.0,0.00022465,2]
[320079863,1711139473918,-2839.58,0.00022465,2]
[320079864,1711139473927,-500.0,0.00022465,2]
[320079865,1711139473936,-1649.54,0.00022465,2]
[320079866,1711139473946,-500.0,0.00022465,2]
[320079867,1711139473955,-1894.73,0.00022465,2]
[320079868,1711139473965,-500.0,0.00022465,2]
[320079869,1711139473974,-500.0,0.00022465,2]
[320079870,1711139473983,-500.0,0.00022465,2]
[320079871,1711139473993,-500.0,0.00022465,2]
[320079872,1711139474003,-500.0,0.00022465,2]
[320079873,1711139474015,-500.0,0.00022465,2]
[320079874,1711139474025,-500.0,0.00022465,2]
[320079875,1711139474034,-500.0,0.00022465,2]
[320079876,1711139474045,-500.0,0.00022465,2]
[320079877,1711139474054,-610.02,0.00022465,2]
[320079878,1711139474063,-500.0,0.00022465,2]
[320079879,1711139474073,-1512.42,0.00022465,2]
[320079880,1711139474083,-500.0,0.00022465,2]
[320079881,1711139474094,-500.0,0.00022465,2]
[320079882,1711139474103,-500.0,0.00022465,2]
[320079883,1711139474113,-1761.42,0.00022465,2]
[320079884,1711139474122,-1207.26,0.00022465,2]
[320079885,1711139474131,-500.0,0.00022465,2]
[320079886,1711139474141,-500.0,0.00022465,2]
[320079887,1711139474150,-2444.99,0.00022465,2]
[320079888,1711139474160,-500.0,0.00022465,2]
[320079889,1711139474169,-1180.89,0.00022465,2]
[320079890,1711139474179,-1095.11,0.00022465,2]
[320079891,1711139474189,-500.0,0.00022465,2]
[320079892,1711139474199,-915.86,0.00022465,2]
[320079893,1711139474208,-1736.25,0.00022465,2]
[320079894,1711139474218,-500.0,0.00022465,2]
[320079895,1711139474227,-1140.36,0.00022465,2]
[320079896,1711139474237,-887.55,0.00022465,2]
[320079897,1711139474246,-828.15,0.00022465,2]
[320079898,1711139474255,-640.06,0.00022465,2]
[320079899,1711139474265,-500.0,0.00022465,2]
[320079900,1711139474274,-500.0,0.00022465,2]
[320079901,1711139474284,-500.0,0.00022465,2]
[320079902,1711139474294,-2490.43,0.00022465,2]
[320079903,1711139474303,-2205.72,0.00022465,2]
[320079904,1711139474313,-500.0,0.00022465,2]
[320079905,1711139474322,-500.0,0.00022465,2]
[320079906,1711139474331,-500.0,0.00022465,2]
[320079907,1711139474341,-1097.71,0.00022465,2]
[320079908,1711139474352,-500.0,0.00022465,2]
[320079909,1711139474362,-500.0,0.00022465,2]
[320079910,1711139474371,-709.86,0.00022465,2]
[320079911,1711139474380,-500.0,0.00022465,2]
[320079912,1711139474390,-500.0,0.00022465,2]
[320079913,1711139474400,-500.0,0.00022465,2]
[320079914,1711139474409,-830.59,0.00022465,2]
[320079915,1711139474419,-500.0,0.00022465,2]
[320079916,1711139474428,-1982.21,0.00022465,2]
[320079917,1711139474438,-500.0,0.00022465,2]
[320079918,1711139474447,-500.0,0.00022465,2]
[320079919,1711139474456,-500.0,0.00022465,2]
[320079920,1711139474466,-1130.16,0.00022465,2]
[320079921,1711139474476,-500.0,0.00022465,2]
[320079922,1711139474485,-500.0,0.00022465,2]
[320079923,1711139474495,-1554.38,0.00022465,2]
[320079924,1711139474504,-743.47,0.00022465,2]
[320079925,1711139474513,-500.0,0.00022465,2]
[320079926,1711139474523,-1035.85,0.00022465,2]
[320079927,1711139474531,-212.16392658,0.00022465,2]
[320079928,1711139474540,-842.49,0.00022465,2]
[320079929,1711139474550,-883.6,0.00022465,2]
[320079930,1711139474559,-500.0,0.00022465,2]
[320079931,1711139474569,-500.0,0.00022465,2]
[320079932,1711139474578,-1761.67,0.00022465,2]
[320079933,1711139474589,-500.0,0.00022465,2]
[320079934,1711139474600,-1708.65,0.00022465,2]
[320079935,1711139474609,-500.0,0.00022465,2]
[320079936,1711139474619,-599.99,0.00022465,2]
[320079937,1711139474628,-543.1,0.00022465,2]
[320079938,1711139474637,-1122.02,0.00022465,2]
[320079939,1711139474646,-500.0,0.00022465,2]
[320079940,1711139474656,-521.24,0.00022465,2]
[320079941,1711139474665,-500.0,0.00022465,2]
[320079942,1711139474674,-983.52,0.00022465,2]
[320079943,1711139474683,-500.0,0.00022465,2]
[320079944,1711139474692,-1720.77,0.00022465,2]
[320079945,1711139474702,-500.0,0.00022465,2]
[320079946,1711139474711,-511.42,0.00022465,2]
[320079947,1711139474720,-888.08,0.00022465,2]
[320079948,1711139474731,-500.0,0.00022465,2]
[320079949,1711139474740,-726.21,0.00022465,2]
[320079950,1711139474750,-1687.74,0.00022465,2]
[320079951,1711139474760,-715.91,0.00022465,2]
[320079952,1711139474769,-500.0,0.00022465,2]
[320079953,1711139474779,-500.0,0.00022465,2]
[320079954,1711139474789,-3088.37,0.00022465,2]
[320079955,1711139474799,-2446.59,0.00022465,2]
[320079956,1711139474809,-500.0,0.00022465,2]
[320079957,1711139474819,-500.0,0.00022465,2]
[320079958,1711139474828,-500.0,0.00022465,2]
[320079959,1711139474837,-2062.43,0.00022465,2]
[320079960,1711139474848,-1282.39,0.00022465,2]
[320079961,1711139474857,-647.7,0.00022465,2]
[320079962,1711139474867,-500.0,0.00022465,2]
[320079963,1711139474876,-500.0,0.00022465,2]
[320079964,1711139474885,-500.0,0.00022465,2]
[320079965,1711139475086,-500.0,0.00022465,2]
[320079966,1711139475098,-500.0,0.00022465,2]
[320079967,1711139475107,-500.0,0.00022465,2]
[320079968,1711139475117,-670.92,0.00022465,2]
[320079969,1711139475127,-500.0,0.00022465,2]
[320079970,1711139475137,-1534.88,0.00022465,2]
[320079971,1711139475146,-1805.68,0.00022465,2]
[320079972,1711139475155,-2209.08,0.00022465,2]
[320079973,1711139475165,-500.0,0.00022465,2]
[320079974,1711139475175,-500.0,0.00022465,2]
[320079975,1711139475184,-500.0,0.00022465,2]
[320079976,1711139475193,-1549.2,0.00022465,2]
[320079977,1711139475203,-500.0,0.00022465,2]
[320079978,1711139475212,-500.0,0.00022465,2]
[320079979,1711139475221,-500.0,0.00022465,2]
[320079980,1711139475231,-500.0,0.00022465,2]
[320079981,1711139475240,-500.0,0.00022465,2]
[320079982,1711139475249,-2364.15,0.00022465,2]
[320079983,1711139475259,-1100.33,0.00022465,2]
[320079984,1711139475269,-1938.15,0.00022465,2]
[320079985,1711139475278,-500.0,0.00022465,2]
[320079986,1711139475288,-500.0,0.00022465,2]
[320079987,1711139475297,-500.0,0.00022465,2]
[320079988,1711139475307,-509.58482256,0.00022465,2]
[320079989,1711139475317,-707.91,0.00022465,2]
[320079990,1711139475326,-500.0,0.00022465,2]
[320079991,1711139475336,-500.0,0.00022465,2]
[320079992,1711139475347,-500.0,0.00022465,2]
[320079993,1711139475356,-978.31,0.00022465,2]
[320079994,1711139475365,-747.58,0.00022465,2]
[320079995,1711139475375,-1215.28,0.00022465,2]
[320079996,1711139475384,-2205.09,0.00022465,2]
[320079997,1711139475394,-504.1338502,0.00022465,2]
[320079998,1711139475404,-1268.26,0.00022465,2]
[320079999,1711139475414,-1677.81,0.00022465,2]
[320080000,1711139475423,-500.0,0.00022465,2]
[320080001,1711139475433,-500.0,0.00022465,2]
[320080002,1711139475443,-500.0,0.00022465,2]
[320080003,1711139475453,-500.0,0.00022465,2]
[320080004,1711139475462,-6511.15,0.00022465,2]
[320080005,1711139475471,-500.0,0.00022465,2]
[320080006,1711139475481,-624.28,0.00022465,2]
[320080007,1711139475491,-501.91156575,0.00022465,2]
[320080008,1711139475501,-378.50343117,0.00022465,2]
[320080009,1711139475511,-564.15928715,0.00022465,2]
[320080010,1711139475521,-500.0,0.00022465,2]
[320080011,1711139475531,-500.0,0.00022465,2]
[320080012,1711139475540,-500.0,0.00022465,2]
[320080013,1711139475550,-1600.9,0.00022465,2]
[320080014,1711139475560,-500.0,0.00022465,2]
[320080015,1711139475569,-1208.83,0.00022465,2]
[320080016,1711139475578,-500.0,0.00022465,2]
[320080017,1711139475587,-510.65887062,0.00022465,2]
[320080018,1711139475598,-857.53,0.00022465,2]
[320080019,1711139475607,-590.95,0.00022465,2]
[320080020,1711139475616,-504.07353082,0.00022465,2]
[320080021,1711139475626,-870.46,0.00022465,2]
[320080022,1711139475636,-500.0,0.00022465,2]
[320080023,1711139475645,-510.27,0.00022465,2]
[320080024,1711139475655,-641.79,0.00022465,2]
[320080025,1711139475664,-1523.31,0.00022465,2]
[320080026,1711139475673,-500.0,0.00022465,2]
[320080027,1711139475683,-500.0,0.00022465,2]
[320080028,1711139475694,-500.0,0.00022465,2]
[320080029,1711139475703,-500.0,0.00022465,2]
[320080030,1711139475712,-1892.95,0.00022465,2]
[320080031,1711139475721,-500.0,0.00022465,2]
[320080032,1711139475731,-613.62,0.00022465,2]
[320080033,1711139475741,-500.0,0.00022465,2]
[320080034,1711139475750,-500.0,0.00022465,2]
[320080035,1711139475759,-500.0,0.00022465,2]
[320080036,1711139475768,-500.0,0.00022465,2]
[320080037,1711139475777,-500.0,0.00022465,2]
[320080038,1711139475787,-500.0,0.00022465,2]
[320080039,1711139475796,-500.0,0.00022465,2]
[320080040,1711139475806,-500.0,0.00022465,2]
[320080041,1711139475818,-563.59,0.00022465,2]
[320080042,1711139475827,-1301.1,0.00022465,2]
[320080043,1711139475837,-1397.93,0.00022465,2]
[320080044,1711139475848,-1900.66,0.00022465,2]
[320080045,1711139475857,-1168.71,0.00022465,2]
[320080046,1711139475866,-509.15493349,0.00022465,2]
[320080047,1711139475874,-500.0,0.00022465,2]
[320080048,1711139475885,-503.75,0.00022465,2]
[320080049,1711139475894,-500.0,0.00022465,2]
[320080050,1711139475904,-500.0,0.00022465,2]
[320080051,1711139475914,-500.0,0.00022465,2]
[320080052,1711139475926,-500.0,0.00022465,2]
[320080053,1711139475938,-500.0,0.00022465,2]
[320080054,1711139475947,-500.0,0.00022465,2]
[320080055,1711139475956,-500.0,0.00022465,2]
[320080056,1711139475966,-513.0,0.00022465,2]
[320080057,1711139475975,-500.0,0.00022465,2]
[320080058,1711139475985,-1481.16,0.00022465,2]
[320080059,1711139475994,-500.0,0.00022465,2]
[320080060,1711139476008,-1126.04,0.00022465,2]
[320080061,1711139476018,-3036.46,0.00022465,2]
[320080062,1711139476027,-1148.09,0.00022465,2]
[320080063,1711139476039,-500.0,0.00022465,2]
[320080064,1711139476048,-500.0,0.00022465,2]
[320080065,1711139476058,-780.98,0.00022465,2]
[320080066,1711139476067,-500.0,0.00022465,2]
[320080067,1711139476076,-500.0,0.00022465,2]
[320080068,1711139476086,-500.0,0.00022465,2]
[320080069,1711139476097,-500.0,0.00022465,2]
[320080070,1711139476107,-500.0,0.00022465,2]
[320080071,1711139476118,-500.0,0.00022465,2]
[320080072,1711139476128,-1302.59,0.00022465,2]
[320080073,1711139476137,-500.0,0.00022465,2]
[320080074,1711139476147,-500.0,0.00022465,2]
[320080075,1711139476157,-500.0,0.00022465,2]
[320080076,1711139476167,-500.0,0.00022465,2]
[320080077,1711139476179,-1621.94,0.00022465,2]
[320080078,1711139476189,-500.0,0.00022465,2]
[320080079,1711139476198,-2468.97,0.00022465,2]
[320080080,1711139476210,-500.0,0.00022465,2]
[320080081,1711139476219,-1181.28,0.00022465,2]
[320080082,1711139476229,-625.96,0.00022465,2]
[320080083,1711139476239,-568.33,0.00022465,2]
[320080084,1711139476249,-2660.23,0.00022465,2]
[320080085,1711139476258,-511.77929652,0.00022465,2]
[320080086,1711139476267,-1563.28,0.00022465,2]
[320080087,1711139476277,-639.57610137,0.00022465,2]
[320080088,1711139476286,-500.0,0.00022465,2]
[320080089,1711139476295,-500.0,0.00022465,2]
[320080090,1711139476305,-1718.27,0.00022465,2]
[320080091,1711139476315,-509.32615236,0.00022465,2]
[320080092,1711139476325,-1527.81,0.00022465,2]
[320080093,1711139476335,-500.0,0.00022465,2]
[320080094,1711139476344,-893.84,0.00022465,2]
[320080095,1711139476353,-2066.53,0.00022465,2]
[320080096,1711139476362,-500.0,0.00022465,2]
[320080097,1711139476372,-500.0,0.00022465,2]
[320080098,1711139476381,-384.48055272,0.00022465,2]
[320080099,1711139476390,-788.52,0.00022465,2]
[320080100,1711139476400,-500.0,0.00022465,2]
[320080101,1711139476410,-541.82,0.00022465,2]
[320080102,1711139476419,-505.28574466,0.00022465,2]
[320080103,1711139476428,-500.0,0.00022465,2]
[320080104,1711139476438,-2408.15,0.00022465,2]
[320080105,1711139476447,-500.0,0.00022465,2]
[320080106,1711139476457,-893.85,0.00022465,2]
[320080107,1711139476466,-1014.84,0.00022465,2]
[320080108,1711139476475,-948.46,0.00022465,2]
[320080109,1711139476485,-500.0,0.00022465,2]
[320080110,1711139476494,-500.0,0.00022465,2]
[320080111,1711139476503,-792.38,0.00022465,2]
[320080112,1711139476512,-2671.56,0.00022465,2]
[320080113,1711139476521,-500.0,0.00022465,2]
[320080114,1711139476531,-2029.6,0.00022465,2]
[320080115,1711139476541,-1254.91,0.00022465,2]
[320080116,1711139476550,-500.0,0.00022465,2]
[320080117,1711139476559,-500.0,0.00022465,2]
[320080118,1711139476568,-1616.39,0.00022465,2]
[320080119,1711139476577,-500.0,0.00022465,2]
[320080120,1711139476587,-566.27,0.00022465,2]
[320080121,1711139476597,-1195.1,0.00022465,2]
[320080122,1711139476606,-561.44,0.00022465,2]
[320080123,1711139476615,-500.0,0.00022465,2]
[320080124,1711139476624,-500.0,0.00022465,2]
[320080125,1711139476634,-1596.94,0.00022465,2]
[320080126,1711139476643,-1126.22,0.00022465,2]
[320080127,1711139476653,-2856.72,0.00022465,2]
[320080128,1711139476662,-500.0,0.00022465,2]
[320080129,1711139476671,-500.0,0.00022465,2]
[320080130,1711139476681,-726.52,0.00022465,2]
[320080131,1711139476691,-200.71823544,0.00022465,2]
[320080132,1711139476700,-500.0,0.00022465,2]
[320080133,1711139476709,-500.0,0.00022465,2]
[320080134,1711139476718,-3250.78,0.00022465,2]
[320080135,1711139476727,-1123.15,0.00022465,2]
[320080136,1711139476736,-1374.63,0.00022465,2]
[320080137,1711139476746,-500.0,0.00022465,2]
[320080138,1711139476755,-1580.05,0.00022465,2]
[320080139,1711139476764,-500.0,0.00022465,2]
[320080140,1711139476774,-2031.5,0.00022465,2]
[320080141,1711139476784,-500.0,0.00022465,2]
[320080142,1711139476793,-500.0,0.00022465,2]
[320080143,1711139476802,-500.0,0.00022465,2]
[320080144,1711139476811,-3873.9,0.00022465,2]
[320080145,1711139476821,-52091.15,0.00022465,2]
[320080146,1711139476830,-894.93,0.00022465,2]
[320080147,1711139476841,-1694.22,0.00022465,2]
[320080148,1711139476851,-500.0,0.00022465,2]
[320080149,1711139476861,-502.80713166,0.00022465,2]
[320080150,1711139476870,-500.0,0.00022465,2]
[320080151,1711139476880,-1019.05,0.00022465,2]
[320080152,1711139476890,-644.62,0.00022465,2]
[320080153,1711139476901,-500.0,0.00022465,2]
[320080154,1711139476910,-2149.55,0.00022465,2]
[320080155,1711139476920,-1787.59,0.00022465,2]
[320080156,1711139476929,-3163.73,0.00022465,2]
[320080157,1711139476938,-1644.34,0.00022465,2]
[320080158,1711139476948,-13902.85,0.00022465,2]
[320080159,1711139476957,-1266.34,0.00022465,2]
[320080160,1711139476967,-500.0,0.00022465,2]
[320080161,1711139476976,-1124.78,0.00022465,2]
[320080162,1711139476985,-549.43638737,0.00022465,2]
[320080163,1711139476996,-1006.42,0.00022465,2]
[320080164,1711139477006,-736.92,0.00022465,2]
[320080165,1711139477019,-500.0,0.00022465,2]
[320080166,1711139477028,-502.82809484,0.00022465,2]
[320080167,1711139477037,-1100.56,0.00022465,2]
[320080168,1711139477046,-1580.52,0.00022465,2]
[320080169,1711139477057,-530.98,0.00022465,2]
[320080170,1711139477066,-1643.02,0.00022465,2]
[320080171,1711139477075,-1321.98,0.00022465,2]
[320080172,1711139477085,-500.0,0.00022465,2]
[320080173,1711139477095,-1303.59,0.00022465,2]
[320080174,1711139477106,-3118.01,0.00022465,2]
[320080175,1711139477115,-869.66,0.00022465,2]
[320080176,1711139477124,-500.0,0.00022465,2]
[320080177,1711139477134,-1519.6,0.00022465,2]
[320080178,1711139477144,-500.0,0.00022465,2]
[320080179,1711139477153,-500.0,0.00022465,2]
[320080180,1711139477163,-1879.7,0.00022465,2]
[320080181,1711139477172,-503.28445101,0.00022465,2]
[320080182,1711139477182,-500.0,0.00022465,2]
[320080183,1711139477191,-500.0,0.00022465,2]
[320080184,1711139477200,-968.97,0.00022465,2]
[320080185,1711139477210,-1324.46,0.00022465,2]
[320080186,1711139477220,-672.73,0.00022465,2]
[320080187,1711139477229,-500.0,0.00022465,2]
[320080188,1711139477239,-3495.88,0.00022465,2]
[320080189,1711139477248,-706.88,0.00022465,2]
[320080190,1711139477257,-500.0,0.00022465,2]
[320080191,1711139477267,-737.16,0.00022465,2]
[320080192,1711139477276,-500.0,0.00022465,2]
[320080193,1711139477286,-500.0,0.00022465,2]
[320080194,1711139477296,-2215.21,0.00022465,2]
[320080195,1711139477305,-6600.21,0.00022465,2]
[320080196,1711139477315,-2191.46,0.00022465,2]
[320080197,1711139477325,-500.0,0.00022465,2]
[320080198,1711139477334,-500.0,0.00022465,2]
[320080199,1711139477344,-500.0,0.00022465,2]
[320080200,1711139477354,-554.98,0.00022465,2]
[320080201,1711139477363,-774.68,0.00022465,2]
[320080202,1711139477372,-500.0,0.00022465,2]
[320080203,1711139477382,-500.0,0.00022465,2]
[320080204,1711139477392,-500.0,0.00022465,2]
[320080205,1711139477403,-1458.26,0.00022465,2]
[320080206,1711139477412,-1303.22,0.00022465,2]
[320080207,1711139477422,-2227.68,0.00022465,2]
[320080208,1711139477431,-2823.43,0.00022465,2]
[320080209,1711139477440,-500.0,0.00022465,2]
[320080210,1711139477450,-2025.48,0.00022465,2]
[320080211,1711139477459,-25829.61,0.00022465,2]
[320080212,1711139477468,-500.0,0.00022465,2]
[320080213,1711139477478,-505.75406522,0.00022465,2]
[320080214,1711139477487,-1970.48,0.00022465,2]
[320080215,1711139477497,-1642.57,0.00022465,2]
[320080216,1711139477506,-738.39,0.00022465,2]
[320080217,1711139477516,-652.47,0.00022465,2]
[320080218,1711139477526,-719.23,0.00022465,2]
[320080219,1711139477536,-1331.44,0.00022465,2]
[320080220,1711139477545,-500.0,0.00022465,2]
[320080221,1711139477554,-2337.31,0.00022465,2]
[320080222,1711139477563,-500.0,0.00022465,2]
[320080223,1711139477572,-591.61,0.00022465,2]
[320080224,1711139477581,-570.35,0.00022465,2]
[320080225,1711139477590,-500.0,0.00022465,2]
[320080226,1711139477605,-500.0,0.00022465,2]
[320080227,1711139477614,-500.0,0.00022465,2]
[320080228,1711139477623,-682.95,0.00022465,2]
[320080229,1711139477633,-2947.01,0.00022465,2]
[320080230,1711139477644,-500.0,0.00022465,2]
[320080231,1711139477655,-3852.55,0.00022465,2]
[320080232,1711139477665,-4350.09,0.00022465,2]
[320080233,1711139477675,-838.77,0.00022465,2]
[320080234,1711139477684,-2668.36,0.00022465,2]
[320080235,1711139477693,-639.98,0.00022465,2]
[320080236,1711139477703,-500.0,0.00022465,2]
[320080237,1711139477712,-500.0,0.00022465,2]
[320080238,1711139477722,-4723.97,0.00022465,2]
[320080239,1711139477732,-500.0,0.00022465,2]
[320080240,1711139477743,-500.0,0.00022465,2]
[320080241,1711139477752,-500.0,0.00022465,2]
[320080242,1711139477762,-3043.68,0.00022465,2]
[320080243,1711139477771,-2221.54,0.00022465,2]
[320080244,1711139477779,-1569.77,0.00022465,2]
[320080245,1711139477789,-2236.55,0.00022465,2]
[320080246,1711139477799,-1119.7,0.00022465,2]
[320080247,1711139477808,-1294.51,0.00022465,2]
[320080248,1711139477998,-500.0,0.00022465,2]
[320080249,1711139478009,-3554.27,0.00022465,2]
[320080250,1711139478019,-500.0,0.00022465,2]
[320080251,1711139478028,-500.0,0.00022465,2]
[320080252,1711139478037,-989.17,0.00022465,2]
[320080253,1711139478046,-8504.76,0.00022465,2]
[320080254,1711139478056,-1807.17,0.00022465,2]
[320080255,1711139478065,-500.0,0.00022465,2]
[320080256,1711139478074,-500.0,0.00022465,2]
[320080257,1711139478084,-787.39,0.00022465,2]
[320080258,1711139478096,-3225.53,0.00022465,2]
[320080259,1711139478105,-2677.32,0.00022465,2]
[320080260,1711139478115,-500.0,0.00022465,2]
[320080261,1711139478124,-623.11,0.00022465,2]
[320080262,1711139478133,-505.38452935,0.00022465,2]
[320080263,1711139478142,-8524.41,0.00022465,2]
[320080264,1711139478152,-2529.53,0.00022465,2]
[320080265,1711139478161,-9067.87,0.00022465,2]
[320080266,1711139478170,-500.0,0.00022465,2]
[320080267,1711139478180,-500.0,0.00022465,2]
[320080268,1711139478189,-4392.39,0.00022465,2]
[320080269,1711139478198,-1031.34,0.00022465,2]
[320080270,1711139478207,-1578.78,0.00022465,2]
[320080271,1711139478217,-4596.99,0.00022465,2]
[320080272,1711139478227,-1385.51,0.00022465,2]
[320080273,1711139478236,-500.0,0.00022465,2]
[320080274,1711139478246,-500.0,0.00022465,2]
[320080275,1711139478255,-500.0,0.00022465,2]
[320080276,1711139478264,-2954.56,0.00022465,2]
[320080277,1711139478274,-1011.99,0.00022465,2]
[320080278,1711139478284,-500.0,0.00022465,2]
[320080279,1711139478293,-949.88,0.00022465,2]
[320080280,1711139478302,-3417.46,0.00022465,2]
[320080281,1711139478311,-5407.81,0.00022465,2]
[320080282,1711139478321,-500.0,0.00022465,2]
[320080283,1711139478330,-3344.85,0.00022465,2]
[320080284,1711139478339,-500.0,0.00022465,2]
[320080285,1711139478351,-500.0,0.00022465,2]
[320080286,1711139478360,-500.0,0.00022465,2]
[320080287,1711139478370,-500.0,0.00022465,2]
[320080288,1711139478379,-751.22,0.00022465,2]
[320080289,1711139478388,-3514.71,0.00022465,2]
[320080290,1711139478397,-1430.18,0.00022465,2]
[320080291,1711139478406,-1983.16,0.00022465,2]
[320080292,1711139478416,-2805.84,0.00022465,2]
[320080293,1711139478425,-500.0,0.00022465,2]
[320080294,1711139478434,-3105.09,0.00022465,2]
[320080295,1711139478443,-512.45834845,0.00022465,2]
[320080296,1711139478452,-11888.04,0.00022465,2]
[320080297,1711139478462,-500.0,0.00022465,2]
[320080298,1711139478471,-500.0,0.00022465,2]
[320080299,1711139478480,-500.0,0.00022465,2]
[320080300,1711139478491,-1092.09,0.00022465,2]
[320080301,1711139478500,-503.95541714,0.00022465,2]
[320080302,1711139478509,-6093.5,0.00022465,2]
[320080303,1711139478520,-1128.65,0.00022465,2]
[320080304,1711139478529,-500.0,0.00022465,2]
[320080305,1711139478538,-500.0,0.00022465,2]
[320080306,1711139478547,-2463.43,0.00022465,2]
[320080307,1711139478556,-500.0,0.00022465,2]
[320080308,1711139478565,-16783.76,0.00022465,2]
[320080309,1711139478574,-2578.15,0.00022465,2]
[320080310,1711139478584,-3621.47,0.00022465,2]
[320080311,1711139478594,-500.0,0.00022465,2]
[320080312,1711139478603,-17844.99,0.00022465,2]
[320080313,1711139478613,-1620.58,0.00022465,2]
[320080314,1711139478623,-500.0,0.00022465,2]
[320080315,1711139478632,-505.52446355,0.00022465,2]
[320080316,1711139478641,-502.7544205,0.00022465,2]
[320080317,1711139478650,-1030.69,0.00022465,2]
[320080318,1711139478659,-500.0,0.00022465,2]
[320080319,1711139478668,-897.44,0.00022465,2]
[320080320,1711139478677,-2469.18,0.00022465,2]
[320080321,1711139478686,-500.0,0.00022465,2]
[320080322,1711139478695,-2966.65,0.00022465,2]
[320080323,1711139478704,-500.0,0.00022465,2]
[320080324,1711139478713,-4434.74,0.00022465,2]
[320080325,1711139478722,-746.3,0.00022465,2]
[320080326,1711139478731,-2313.98,0.00022465,2]
[320080327,1711139478740,-1352.37,0.00022465,2]
[320080328,1711139478749,-859.54,0.00022465,2]
[320080329,1711139478758,-2833.08,0.00022465,2]
[320080330,1711139478767,-500.0,0.00022465,2]
[320080331,1711139478776,-2024.04,0.00022465,2]
[320080332,1711139478786,-5814.09,0.00022465,2]
[320080333,1711139478795,-1312.35,0.00022465,2]
[320080334,1711139478804,-2389.48,0.00022465,2]
[320080335,1711139478813,-2421.81,0.00022465,2]
[320080336,1711139478823,-10482.87,0.00022465,2]
[320080337,1711139478832,-1745.38,0.00022465,2]
[320080338,1711139478841,-1568.16,0.00022465,2]
[320080339,1711139478852,-7803.02,0.00022465,2]
[320080340,1711139478861,-221.64126286,0.00022465,2]
[320080341,1711139478869,-11587.27,0.00022465,2]
[320080342,1711139478878,-2463.37,0.00022465,2]
[320080343,1711139478887,-2627.03,0.00022465,2]
[320080344,1711139478896,-500.0,0.00022465,2]
[320080345,1711139478905,-286.05684938,0.00022465,2]